bitfinex-derivatives/quotes_SOLF0:USTF0_20251207
["timestamp","ask_amount","ask_price","bid_price","bid_amount"]
[1765145236013,107.6142,130.09,129.99,0.05008029]
[1765145236214,107.6203,130.08,130.0,3.11]
[1765145236417,71.28,130.1,130.0,3.11]
[1765145236721,107.5801,130.13,130.04,3.11]
[1765145236924,107.5374,130.18,130.06,3.11]
[1765145237122,107.574,130.14,130.01,107.6704]
[1765145237418,0.05356003,130.09,130.06,0.00373123]
[1765145237630,107.6218,130.08,129.95,107.7237]
[1765145237807,107.656,130.04,129.89,107.7682]
[1765145238011,107.6864,130.0,129.88,3.2]
[1765145238313,107.6944,129.99,129.88,3.2]
[1765145238512,107.6944,129.99,129.84,196.04371903]
[1765145238513,107.7121,129.97,129.84,107.8159]
[1765145238714,107.6944,129.99,129.88,3.2]
[1765145238909,114.6094,130.0,129.87,107.7887]
[1765145238910,107.6864,130.0,129.9,3.2]
[1765145239110,179.3769,130.06,129.94,3.2]
[1765145239306,107.6141,130.09,129.97,3.2]
[1765145239519,107.6015,130.1,129.98,3.2]
[1765145239716,107.6015,130.1,129.99,3.2]
[1765145239911,107.645,130.05,129.95,16.44781903]
[1765145240113,0.05511435,130.06,130.03,3.25208724]
[1765145240416,0.04961397,130.06,130.03,3.25497779]
[1765145240824,107.5879,130.12,130.03,3.25497779]
[1765145240825,107.5952,130.11,130.03,3.25497779]
[1765145241013,107.5815,130.13,130.03,3.2]
[1765145241321,107.5815,130.13,130.02,3.2]
[1765145241524,107.6461,130.05,129.96,3.2]
[1765145241822,107.6461,130.05,129.99,0.05281557]
[1765145241823,107.6472,130.05,129.99,0.05281557]
[1765145242023,107.6236,130.08,129.99,0.05281557]
[1765145242319,107.5809,130.13,130.01,110.8714]
[1765145242524,107.5721,130.14,130.03,3.2]
[1765145242817,107.5405,130.18,130.07,3.24894094]
[1765145243023,107.5405,130.18,130.07,3.2]
[1765145243224,107.5244,130.2,130.08,3.2]
[1765145243413,107.5789,130.13,130.02,3.2]
[1765145243620,107.6202,130.08,129.97,3.2]
[1765145243917,107.6122,130.09,130.03,3.2]
[1765145244123,107.6379,130.06,129.97,3.2]
[1765145244321,124.04451903,130.11,129.97,110.9039]
[1765145244322,107.6045,130.1,129.97,110.9039]
[1765145244520,107.6045,130.1,129.97,110.9058]
[1765145244719,107.6209,130.08,130.0,3.2]
[1765145244918,0.0492945,130.05,130.03,0.05650643]
[1765145245426,107.5629,130.15,130.04,3.2]
[1765145245917,107.562,130.15,130.04,3.2]
[1765145246118,107.562,130.15,130.02,107.6629]
[1765145246119,107.5158,130.21,130.09,3.2]
[1765145246319,0.05768136,130.16,130.14,0.05232454]
[1765145246521,0.0516587,130.16,130.14,0.05232454]
[1765145247322,0.0516587,130.16,130.14,3.25232454]
[1765145247526,107.4586,130.28,130.14,3.25232454]
[1765145247527,107.4586,130.28,130.15,3.2]
[1765145247724,107.4553,130.28,130.17,3.2]
[1765145247911,16.44781903,130.3,130.18,3.2]
[1765145248116,123.88491903,130.3,130.18,110.7317]
[1765145248316,72.24,130.33,130.21,3.2]
[1765145248317,79.1453,130.33,130.21,3.2]
[1765145248516,107.3915,130.36,130.26,3.25740956]
[1765145248728,107.3821,130.37,130.26,3.2]
[1765145248932,107.3588,130.4,130.28,3.2]
[1765145249118,179.5817,130.42,130.28,3.2]
[1765145249119,107.39,130.36,130.28,3.2]
[1765145249319,107.4218,130.32,130.22,3.2]
[1765145249517,107.5086228,130.28,130.26,0.05415301]
[1765145249830,0.05243439,130.28,130.26,0.05465277]
[1765145250016,0.05243439,130.28,130.18,3.2]
[1765145250220,107.48,130.25,130.13,3.2]
[1765145250424,107.48,130.25,130.12,107.5796]
[1765145250425,107.4802,130.25,130.15,3.2]
[1765145250628,107.4888,130.24,130.15,3.2]
[1765145250827,107.4976,130.23,130.15,3.2]
[1765145251017,0.0575494,130.2,130.18,0.04981826]
[1765145251213,0.0575494,130.2,130.15,3.2]
[1765145251214,107.4861,130.24,130.15,3.2]
[1765145251426,0.05477094,130.2,130.18,0.05638283]
[1765145251827,107.48,130.25,130.18,0.05638283]
[1765145252018,107.4405,130.3,130.18,3.2]
[1765145252223,107.4446,130.29,130.18,3.2]
[1765145252419,107.4964,130.23,130.08,3.2]
[1765145252717,107.4774,130.25,130.13,110.7754]
[1765145252923,16.44781903,130.31,130.18,107.5312]
[1765145253124,107.4056,130.34,130.21,107.5053]
[1765145253320,107.4287,130.31,130.19,3.2]
[1765145253525,114.326,130.32,130.2,3.2]
[1765145253731,107.4395,130.3,130.2,3.2]
[1765145254031,0.05464757,130.26,130.24,0.05139844]
[1765145254329,39.11781903,130.4,130.27,3.2]
[1765145254330,16.44781903,130.39,130.27,3.2]
[1765145254519,16.44781903,130.43,130.31,3.2]
[1765145254720,107.31,130.46,130.31,3.2]
[1765145254721,107.31,130.46,130.33,3.2]
[1765145255033,107.2767,130.5,130.33,3.2]
[1765145255034,123.65531903,130.58,130.44,3.2]
[1765145255329,1.87665418,130.54,130.48,3.25683512]
[1765145255629,1.87665418,130.54,130.37,3.2]
[1765145255630,107.3192,130.45,130.37,3.2]
[1765145255924,107.3007,130.47,130.37,3.2]
[1765145256231,107.2902,130.48,130.38,3.2]
[1765145256631,107.3314,130.43,130.33,3.2]
[1765145256818,123.75741903,130.46,130.33,3.2]
[1765145257019,107.3658,130.39,130.3,72.64]
[1765145257330,107.3658,130.39,130.25,114.3798]
[1765145257331,123.82521903,130.38,130.26,3.2]
[1765145257522,107.3586,130.4,130.28,3.2]
[1765145257718,0.05735458,130.35,130.33,0.05543647]
[1765145258024,0.05678671,130.35,130.33,0.0484834]
[1765145258222,16.44781903,130.42,130.33,3.2484834]
[1765145258426,107.326,130.44,130.33,3.2]
[1765145258623,107.3561,130.4,130.28,3.2]
[1765145258832,107.3905,130.36,130.28,3.2]
[1765145259021,123.81941903,130.38,130.28,3.2]
[1765145259229,0.05485002,130.34,130.32,3.25271953]
[1765145259529,0.05826381,130.34,130.32,0.05752854]
[1765145259727,0.05826381,130.34,130.32,3.25752854]
[1765145260028,0.05826381,130.34,130.32,0.05752854]
[1765145260327,0.05826381,130.34,130.22,3.2]
[1765145260328,107.4266,130.32,130.22,3.2]
[1765145260523,16.44781903,130.34,130.22,3.2]
[1765145260724,16.44781903,130.38,130.28,3.2]
[1765145261027,16.44781903,130.42,130.3,3.2]
[1765145261228,16.44781903,130.42,130.31,3.2]
[1765145261531,0.05727721,130.38,130.35,0.05128623]
[1765145262229,107.4136,130.33,130.26,3.2]
[1765145262428,107.4136,130.33,130.17,108.52781903]
[1765145262429,107.4554,130.28,130.21,3.2]
[1765145262928,107.4966,130.23,130.15,3.2]
[1765145263127,107.4966,130.23,130.18,0.05426423]
[1765145263128,0.05291229,130.2,130.18,0.05426423]
[1765145264128,114.3658,130.28,130.18,3.25426423]
[1765145264327,107.4392,130.3,130.21,3.2]
[1765145264533,107.4551,130.28,130.17,3.2]
[1765145264720,72.7,130.33,130.2,3.2]
[1765145264721,89.14781903,130.33,130.2,3.2]
[1765145265027,16.44781903,130.33,130.21,3.2]
[1765145265228,107.3828,130.37,130.26,3.2556782]
[1765145265229,0.05790853,130.28,130.26,3.2556782]
[1765145265426,0.05769119,130.28,130.26,3.25087004]
[1765145265630,0.05769119,130.28,130.26,0.05087004]
[1765145266024,0.05769119,130.28,130.26,3.25087004]
[1765145266225,107.399,130.35,130.26,3.25087004]
[1765145266433,107.399,130.35,130.26,3.2]
[1765145266737,107.4219,130.32,130.2,3.2]
[1765145267036,107.4574,130.28,130.2,3.2]
[1765145267237,107.4732,130.26,130.15,3.2]
[1765145267439,107.4897,130.24,130.15,3.2]
[1765145267738,107.4979,130.23,130.15,3.2]
[1765145268038,107.507,130.22,130.1,3.24]
[1765145268335,107.4895,130.24,130.16,3.24]
[1765145268523,107.496,130.23,130.11,3.24]
[1765145268837,114.4341,130.2,130.11,3.24]
[1765145269032,107.5295,130.19,130.11,3.24]
[1765145269229,107.5295,130.19,130.14,0.05369828]
[1765145269230,0.05725902,130.16,130.14,0.05369828]
[1765145269530,114.4769,130.15,130.14,0.05222438]
[1765145269933,107.61125902,130.16,130.14,0.05222438]
[1765145270138,216.70535902,130.16,130.06,3.24]
[1765145270329,215.1081,130.16,130.06,3.24]
[1765145270838,123.99331903,130.17,130.06,3.24]
[1765145271032,16.44781903,130.17,130.06,3.24]
[1765145271234,0.05710997,130.13,130.1,0.05015348]
[1765145271434,107.63590997,130.13,130.1,0.05015348]
[1765145271639,107.5868,130.12,130.1,0.05015348]
[1765145271935,107.5982,130.11,130.0,3.24]
[1765145272134,107.5704,130.14,130.02,3.24]
[1765145272437,114.4657,130.16,130.04,110.8879]
[1765145272629,114.4657,130.16,130.04,3.24]
[1765145272829,72.72,130.18,130.05,110.8785]
[1765145273030,0.05463746,130.11,130.09,0.05610505]
[1765145273232,0.04917291,130.11,130.09,0.04902238]
[1765145273837,107.6375,130.06,129.97,3.24]
[1765145274041,114.5702,130.05,129.93,3.24]
[1765145274343,107.6614,130.03,129.93,3.24]
[1765145274636,107.7193,129.96,129.87,3.24]
[1765145274834,107.7353,129.94,129.87,3.24]
[1765145275038,107.7125,129.97,129.76,3.24]
[1765145275039,107.7866,129.88,129.76,3.24]
[1765145275235,107.7803,129.89,129.76,3.24]
[1765145275433,107.8024,129.86,129.77,3.24]
[1765145275633,16.44781903,129.93,129.71,107.92]
[1765145275634,107.8279,129.83,129.71,3.24]
[1765145275838,107.8613,129.79,129.66,3.24]
[1765145276040,107.8608,129.79,129.68,3.24]
[1765145276337,107.8716,129.78,129.66,3.24]
[1765145276638,107.95521627,129.74,129.63,22.63837815]
[1765145276838,0.04911627,129.74,129.62,76.08]
[1765145277137,89.28781903,129.77,129.63,111.226]
[1765145277138,124.32581903,129.77,129.63,111.226]
[1765145277339,107.8211,129.84,129.7,107.9264]
[1765145277546,124.22861903,129.89,129.75,107.8882]
[1765145277846,0.05080729,129.83,129.81,0.05259765]
[1765145278047,107.79,129.88,129.76,3.24]
[1765145278336,0.05741621,129.83,129.81,0.05473758]
[1765145278543,180.6492,129.9,129.74,111.1351]
[1765145278544,107.7941,129.87,129.74,111.1351]
[1765145278735,0.05250129,129.82,129.8,0.05252131]
[1765145278930,0.04948924,129.82,129.8,3.29252131]
[1765145279132,16.44781903,129.89,129.8,0.05252131]
[1765145279337,16.44781903,129.89,129.78,111.1025]
[1765145279538,16.44781903,129.89,129.72,16.44781903]
[1765145279539,16.44781903,129.89,129.73,184.1028]
[1765145279836,16.44781903,129.89,129.75,111.1265]
[1765145280038,0.0585516,129.83,129.81,0.05260209]
[1765145280239,0.05427989,129.83,129.81,0.05414226]
[1765145280541,0.00427989,129.83,129.81,0.05414226]
[1765145281136,16.44781903,130.0,129.88,107.7758]
[1765145281330,16.44781903,130.0,129.87,3.31]
[1765145281529,16.44781903,130.0,129.88,107.7801]
[1765145281730,16.44781903,130.04,129.9,111.0708]
[1765145281944,107.6715,130.02,129.85,111.1132]
[1765145282146,107.6715,130.02,129.86,107.7945]
[1765145282437,0.05421534,129.95,129.83,73.1]
[1765145282745,16.44781903,129.96,129.83,73.1]
[1765145282939,16.44781903,130.0,129.85,111.1152]
[1765145283135,124.13421903,130.0,129.85,3.31]
[1765145283338,107.6949,129.99,129.85,3.31]
[1765145283537,0.04942672,129.93,129.91,0.04863887]
[1765145283836,16.44781903,130.08,129.96,3.31]
[1765145284037,107.5953,130.11,129.97,3.31]
[1765145284241,124.03611903,130.12,129.97,3.31]
[1765145284436,124.03611903,130.12,129.98,111.0025]
[1765145284437,16.44781903,130.12,129.98,111.0025]
[1765145284739,0.05509666,130.06,130.04,0.05562605]
[1765145284931,0.05350568,130.06,130.04,0.05290389]
[1765145285131,73.18,130.15,130.04,0.05290389]
[1765145285330,22.85529141,130.4,130.01,107.6723]
[1765145285331,123.97241903,130.2,130.03,110.9616]
[1765145285533,16.44781903,130.2,130.06,3.31]
[1765145285732,16.44781903,130.2,130.09,3.31]
[1765145285938,107.4736,130.26,130.09,3.31]
[1765145285939,16.44781903,130.24,130.09,184.1159]
[1765145286134,0.05582425,130.18,130.15,0.05473897]
[1765145286334,0.05582425,130.18,130.15,0.05524865]
[1765145286335,0.05483706,130.18,130.15,0.05524865]
[1765145287032,0.05483706,130.18,130.15,110.91764865]
[1765145287235,107.4248,130.32,130.18,3.31]
[1765145287236,16.44781903,130.32,130.18,3.31]
[1765145287436,107.4471,130.29,130.18,3.31]
[1765145287742,16.44781903,130.28,130.14,3.31]
[1765145288044,16.44781903,130.28,129.81,294.0]
[1765145288045,123.93571903,130.24,130.09,3.31]
[1765145288242,0.05111736,130.18,130.15,3.36542125]
[1765145288451,0.05759918,130.18,130.15,3.36490827]
[1765145288629,0.05759918,130.18,130.15,0.05490827]
[1765145289144,0.05759918,130.18,130.15,3.36490827]
[1765145290139,107.4881,130.24,130.15,0.05490827]
[1765145290337,107.5203,130.2,130.12,3.31]
[1765145290539,215.0126,130.22,130.07,3.31]
[1765145290742,16.44781903,130.24,130.08,107.6115]
[1765145290945,0.05546161,130.17,130.15,0.05126259]
[1765145291143,123.90541903,130.28,130.15,3.36291325]
[1765145291349,89.66781903,130.32,130.18,110.8414]
[1765145291542,89.66781903,130.32,130.19,3.31]
[1765145291941,107.4408,130.3,130.19,3.31]
[1765145292244,0.05870491,130.26,130.23,0.05636703]
[1765145292543,0.05870491,130.26,130.23,0.05214513]
[1765145292846,0.05870491,130.26,130.23,3.36214513]
[1765145293051,107.4154,130.33,130.23,3.36214513]
[1765145293347,16.44781903,130.35,130.23,3.31]
[1765145293852,107.375,130.38,130.25,3.31]
[1765145294043,89.62781903,130.39,130.28,3.36572083]
[1765145294244,114.2516,130.41,130.32,0.05722109]
[1765145294245,0.05249965,130.33,130.32,0.05722109]
[1765145294444,107.3579,130.4,130.28,3.31]
[1765145294748,0.05004811,130.34,130.31,0.05249696]
[1765145294955,0.0550117,130.34,130.31,0.05012822]
[1765145295452,0.0550117,130.34,130.23,3.31]
[1765145295453,107.4328,130.31,130.23,3.31]
[1765145295660,107.4457,130.29,130.17,3.31]
[1765145295851,107.4457,130.29,130.18,3.31]
[1765145296050,107.4582,130.28,130.19,3.31]
[1765145296248,107.4864,130.24,130.17,73.1]
[1765145296552,0.05019464,130.22,130.19,0.05385836]
[1765145297447,107.5178,130.21,130.09,3.31]
[1765145297751,107.541,130.18,130.09,3.31]
[1765145298057,107.5341,130.19,130.09,3.31]
[1765145298256,107.5178,130.21,130.09,3.31]
[1765145298462,0.05180362,130.16,130.14,0.05602146]
[1765145298750,0.05180362,130.16,130.07,73.04]
[1765145298751,107.5669,130.15,130.07,73.04]
[1765145299055,107.5817,130.13,130.07,73.04]
[1765145299452,107.5669,130.15,130.07,73.04]
[1765145299757,0.04929377,130.12,130.1,0.05318987]
[1765145301256,0.04929377,130.12,129.99,108.15465003]
[1765145301257,107.5972,130.11,129.99,108.15465003]
[1765145301444,107.6037,130.1,129.99,108.15465003]
[1765145301746,107.629,130.07,129.99,3.13]
[1765145301944,107.6037,130.1,129.99,3.13]
[1765145302143,107.5898,130.12,129.99,3.13]
[1765145302349,107.5822,130.13,130.04,0.05185712]
[1765145302350,0.05840611,130.07,130.04,0.05185712]
[1765145302553,0.05610998,130.07,130.04,0.05547859]
[1765145303061,107.5361,130.18,130.05,3.13]
[1765145303259,107.5304,130.19,130.08,3.13]
[1765145303556,107.5304,130.19,130.01,107.6704]
[1765145303557,107.5723,130.14,130.04,3.13]
[1765145303744,107.5537,130.16,130.04,3.13]
[1765145303943,107.5323,130.19,130.06,3.13]
[1765145304140,0.04908562,130.14,130.11,0.05793439]
[1765145304358,0.04908562,130.14,130.11,0.05115609]
[1765145304551,107.4741,130.26,130.13,3.13]
[1765145304858,135.63086646,130.3,130.15,3.13]
[1765145304859,6.9079,130.28,130.15,3.13]
[1765145305059,73.0,130.32,130.2,3.13]
[1765145305362,107.4067,130.34,130.22,3.13]
[1765145305555,0.05737431,130.29,130.27,0.05874933]
[1765145305857,0.05641755,130.29,130.27,0.05874933]
[1765145307658,107.3807,130.37,130.27,3.18874933]
[1765145307862,107.3807,130.37,130.23,3.13]
[1765145308048,142.43076646,130.42,130.28,3.13]
[1765145308251,107.3327,130.43,130.29,3.13]
[1765145308448,107.3179,130.45,130.31,3.13]
[1765145308647,0.05638474,130.37,130.35,0.0516082]
[1765145308854,135.49826646,130.46,130.35,3.13]
[1765145309360,6.8999,130.43,130.31,3.13]
[1765145309564,107.374,130.38,130.26,3.13]
[1765145309751,107.3323,130.43,130.29,3.13]
[1765145309949,107.3216,130.44,130.29,3.13]
[1765145309950,0.05021172,130.37,130.35,0.05408215]
[1765145310251,107.3096,130.46,130.35,3.18113942]
[1765145310449,107.3096,130.46,130.35,3.13]
[1765145310669,107.3096,130.46,130.32,72.94]
[1765145310670,107.2675,130.51,130.38,3.13]
[1765145310848,214.5057,130.53,130.39,3.13]
[1765145311054,107.2656,130.51,130.41,3.13]
[1765145311256,107.3018,130.47,130.36,3.13]
[1765145311456,6.8962,130.5,130.37,3.13]
[1765145311667,107.2841,130.49,130.37,3.13]
[1765145311852,114.1675,130.5,130.37,3.13]
[1765145312160,109.11735418,130.54,130.4,110.479]
[1765145312356,0.05429334,130.48,130.46,0.05351508]
[1765145312655,1.87665418,130.54,130.46,3.18691513]
[1765145312856,1.87665418,130.54,130.46,3.13]
[1765145313060,1.87665418,130.54,130.47,110.4255]
[1765145313356,1.87665418,130.54,130.43,110.4551]
[1765145313561,1.87665418,130.54,130.45,3.13]
[1765145313862,1.87665418,130.54,130.47,0.05234789]
[1765145314262,107.2513,130.53,130.47,0.05234789]
[1765145314466,109.11995418,130.54,130.47,0.05234789]
[1765145314850,107.2559,130.52,130.47,0.05234789]
[1765145315057,1.87665418,130.54,130.47,0.05234789]
[1765145315262,109.11785418,130.54,130.47,0.05234789]
[1765145315761,1.87665418,130.54,130.47,0.05234789]
[1765145316358,1.87665418,130.54,130.47,3.18234789]
[1765145317861,1.87665418,130.54,130.47,0.05234789]
[1765145319357,109.12155418,130.54,130.47,0.05234789]
[1765145319563,1.87665418,130.54,130.47,0.05234789]
[1765145320470,107.2504,130.53,130.47,0.05234789]
[1765145320765,107.2821,130.49,130.37,3.13]
[1765145320961,107.2879,130.48,130.37,3.13]
[1765145321157,107.3085,130.46,130.37,3.13]
[1765145321358,114.2067,130.46,130.37,3.13]
[1765145321559,107.3323,130.43,130.33,3.13]
[1765145321758,107.332,130.43,130.37,0.05206379]
[1765145321957,0.05350526,130.39,130.37,0.05206379]
[1765145322458,0.05350526,130.39,130.37,0.00206379]
[1765145322663,0.05350526,130.39,130.29,72.62]
[1765145322664,108.96200526,130.39,130.29,72.62]
[1765145322965,114.2645,130.39,130.29,72.62]
[1765145323166,114.2645,130.39,130.28,3.13]
[1765145323167,107.3624,130.39,130.25,107.4694]
[1765145323362,107.3565,130.4,130.26,110.5954]
[1765145323558,107.3565,130.4,130.32,0.05318719]
[1765145323559,0.04931648,130.34,130.32,0.05318719]
[1765145323758,0.05832034,130.34,130.32,0.05044577]
[1765145324558,0.05832034,130.34,130.25,3.13]
[1765145324759,107.3806,130.37,130.25,3.13]
[1765145324963,107.3901,130.36,130.22,107.4981]
[1765145325159,114.3012,130.35,130.22,107.4981]
[1765145325466,114.3012,130.35,130.2,110.6429]
[1765145325467,107.4089,130.34,130.2,110.6429]
[1765145325766,0.05732979,130.3,130.27,0.05645939]
[1765145326170,1.59732979,130.3,130.17,107.5369]
[1765145326466,72.48,130.31,130.19,107.52]
[1765145326664,72.48,130.31,130.19,114.4322]
[1765145327366,72.48,130.31,130.24,0.05246877]
[1765145327367,0.04966422,130.26,130.24,0.05246877]
[1765145327668,0.04993444,130.26,130.17,107.5369]
[1765145327868,72.48,130.31,130.2,107.5155]
[1765145328066,107.397,130.35,130.23,107.49]
[1765145328468,107.4318,130.31,130.19,3.25]
[1765145328669,0.05785589,130.26,130.24,0.05754001]
[1765145328862,0.05240331,130.26,130.24,0.05754001]
[1765145330670,0.05240331,130.26,130.24,107.53934001]
[1765145330872,79.2632,130.37,130.26,114.3726]
[1765145331072,186.6414,130.37,130.26,107.4643]
[1765145331270,72.36,130.37,130.28,107.4474]
[1765145331571,107.3342,130.43,130.29,3.25]
[1765145331764,0.05710409,130.37,130.35,0.0539469]
[1765145331968,0.04835428,130.37,130.35,0.05302406]
[1765145332470,135.48356646,130.48,130.35,0.05302406]
[1765145332471,6.8976,130.47,130.35,0.05302406]
[1765145332676,28.19106646,130.48,130.34,117.557]
[1765145332979,114.2209,130.44,130.3,10.1565]
[1765145333268,28.19106646,130.48,130.34,3.25]
[1765145333480,179.6155,130.5,130.37,3.25]
[1765145333670,186.5116,130.5,130.37,3.25]
[1765145334469,0.05905987,130.45,130.42,0.05455352]
[1765145334666,107.3234,130.44,130.32,3.25]
[1765145334864,107.3483,130.41,130.27,3.25]
[1765145335073,114.2499,130.41,130.29,3.25]
[1765145335575,6.9007,130.41,130.29,3.25]
[1765145335877,0.05012013,130.36,130.34,0.04939396]
[1765145336079,0.05669491,130.36,130.34,0.04939396]
[1765145337169,0.05669491,130.36,130.34,3.29939396]
[1765145337365,0.05669491,130.36,130.34,0.04939396]
[1765145338565,107.3051,130.46,130.34,3.29939396]
[1765145338766,72.16,130.51,130.35,110.6431]
[1765145338974,72.16,130.51,130.39,3.25]
[1765145339178,109.12275418,130.54,130.41,3.25]
[1765145339570,0.04914033,130.49,130.46,0.04894554]
[1765145339765,0.04914033,130.49,130.46,0.04932232]
[1765145341172,1.87665418,130.54,130.46,3.29932232]
[1765145341376,1.87665418,130.54,130.48,3.25]
[1765145341672,109.11495418,130.54,130.39,3.25]
[1765145341884,109.11495418,130.54,130.39,110.6061]
[1765145342266,0.05048681,130.48,130.45,0.05550848]
[1765145342571,0.05345542,130.48,130.45,0.05474729]
[1765145342770,1.87665418,130.54,130.45,110.61584729]
[1765145343070,1.87665418,130.54,130.46,117.2904]
[1765145343471,1.87665418,130.54,130.48,114.1819]
[1765145343776,1.87665418,130.54,130.5,3.09]
[1765145344081,72.1,130.62,130.52,117.2378]
[1765145344280,72.1,130.62,130.56,0.05376637]
[1765145344677,179.2725,130.62,130.56,0.05376637]
[1765145345070,78.9901,130.62,130.56,0.05376637]
[1765145345276,107.2094,130.58,130.47,3.09]
[1765145345584,107.1923,130.6,130.47,107.2895]
[1765145345881,107.1903,130.6,130.47,110.3795]
[1765145346079,179.1655,130.61,130.47,110.3795]
[1765145346278,0.05496373,130.55,130.53,0.05405412]
[1765145346478,71.98,130.61,130.53,0.05092279]
[1765145346681,71.98,130.61,130.49,107.276]
[1765145346682,71.98,130.61,130.5,107.2673]
[1765145346983,71.98,130.61,130.5,114.1628]
[1765145347371,107.2263,130.56,130.44,107.3169]
[1765145347785,107.2384,130.54,130.42,110.4216]
[1765145348082,107.2198,130.57,130.45,110.4005]
[1765145348285,107.2198,130.57,130.45,107.3112]
[1765145348476,0.05443776,130.52,130.5,0.05447963]
[1765145348671,0.05562205,130.52,130.5,0.05447963]
[1765145349583,1.59562205,130.52,130.42,107.3341]
[1765145349782,107.249,130.53,130.42,107.3341]
[1765145349976,107.2572,130.52,130.41,107.3396]
[1765145350183,107.2572,130.52,130.37,107.3778]
[1765145350184,107.28,130.49,130.37,107.3778]
[1765145350381,0.04851212,130.44,130.42,0.0529928]
[1765145350580,0.05722513,130.44,130.42,0.04913489]
[1765145351486,1.59722513,130.44,130.34,107.4]
[1765145351787,107.3213,130.44,130.32,107.4155]
[1765145352081,107.3384,130.42,130.27,74.95]
[1765145352291,6.9018,130.39,130.27,74.95]
[1765145352475,0.05151959,130.34,130.32,0.04998219]
[1765145352672,0.04959419,130.34,130.32,0.04998219]
[1765145353375,0.04959419,130.34,130.23,3.09]
[1765145353376,108.99279419,130.34,130.23,3.09]
[1765145353571,114.308,130.34,130.23,3.09]
[1765145353783,179.2386,130.35,130.23,3.09]
[1765145354172,71.84,130.35,130.23,3.09]
[1765145354378,0.05562207,130.3,130.18,3.09]
[1765145354680,0.05562207,130.3,130.14,107.5651]
[1765145354681,107.4469,130.29,130.14,107.5651]
[1765145354877,107.4419,130.3,130.16,110.6384]
[1765145355188,28.19106646,130.32,130.16,110.6384]
[1765145355189,28.19106646,130.32,130.16,110.6377]
[1765145355373,142.51796646,130.32,130.16,110.6377]
[1765145355580,0.0491388,130.25,130.23,0.00224103]
[1765145355778,107.4313,130.31,130.16,3.09]
[1765145355779,71.8,130.28,130.16,3.09]
[1765145356678,0.05005209,130.23,130.21,0.05358059]
[1765145356885,0.05757036,130.23,130.21,0.05358059]
[1765145358585,0.05757036,130.23,130.13,107.5721]
[1765145358784,107.464,130.27,130.12,110.7397]
[1765145358974,123.83996358,130.26,130.12,110.7397]
[1765145359382,107.4307,130.31,130.17,107.5428]
[1765145359588,0.05864204,130.25,130.23,0.0541794]
[1765145359785,0.05571369,130.25,130.23,0.05332226]
[1765145360090,0.05571369,130.25,130.16,6.9135]
[1765145360091,1.59571369,130.25,130.16,6.9135]
[1765145360282,107.4556,130.28,130.16,6.9135]
[1765145360488,114.3715,130.27,130.15,3.16]
[1765145360687,114.3715,130.27,130.15,110.7148]
[1765145360891,0.0543029,130.22,130.2,0.05615195]
[1765145361085,0.05896747,130.22,130.2,0.05033878]
[1765145362689,16.36776358,130.34,130.23,107.4884]
[1765145362887,107.379,130.37,130.23,107.4884]
[1765145362888,107.379,130.37,130.26,107.4684]
[1765145363093,107.4053,130.34,130.23,107.4884]
[1765145363289,107.3971,130.35,130.24,107.4824]
[1765145363785,0.05458825,130.31,130.28,0.04888394]
[1765145364684,107.48278825,130.31,130.2,107.5124]
[1765145364890,16.36776358,130.34,130.25,6.9092]
[1765145365083,199.2906,130.41,130.25,6.9092]
[1765145365084,107.3506,130.41,130.29,107.443]
[1765145365290,16.36776358,130.42,130.31,107.4239]
[1765145365595,107.3481,130.41,130.29,107.443]
[1765145365795,0.05026259,130.36,130.34,0.04839749]
[1765145365997,0.04928093,130.36,130.34,0.05137943]
[1765145366382,71.64,130.43,130.34,112.15367943]